[Event "CCT Julius Baer-D3 2024"]
[Site "Online"]
[Date "2024.09.28"]
[Round "52"]
[White "Martirosyan, Haik M."]
[Black "Kamsky, Gata"]
[Result "0-1"]
[ECO "D11"]
[WhiteElo "2667"]
[BlackElo "2609"]
[Annotator "TA"]
[PlyCount "92"]
[EventDate "2024.09.25"]
[EventType "swiss"]
[EventCountry "NET"]
[SourceTitle "playchess.com"]
[Source "ChessBase"]
[SourceQuality "1"]
[TimeControl "600+2"]

{[%evp 22,92,-16,-28,-19,-30,-9,-45,-47,-65,-52,-118,-114,-154,-89,-83,-60,-47,-45,-50,-52,-79,-67,-260,-261,-275,-293,-275,-238,-270,0,-254,-256,-263,-281,-306,-300,-324,-300,-438,-427,-476,-412,-508,-397,-440,-436,-444,-391,-448,-210,-514,-511,-560,-530,-651,-665,-833,-822,-772,-582,-857,-638,-566,-543,-1325,-1256,-3211,-2884,32767,32767,-29997,-29998]} 1. d4 {[%emt 0:00:05]} d5 {[%emt 0:02:10]} 2. c4 {[%emt 0:00:04]} c6 {[%emt 0:00:02]} 3. Nf3 {[%emt 0:00:03]} Nf6 {[%emt 0:00:03]} 4. Qb3 {[%emt 0:00:03]} e6 {[%emt 0:00:08]} 5. g3 {[%emt 0:00:04]} a5 {[%emt 0:00:10]} 6. Bg2 {[%emt 0:00:04] D11: Slav Defence: 3 Nf3 sidelines and 3...Nf6 4 e3 Bg4.} Nbd7 {[%emt 0:00:04]} 7. O-O {[%emt 0:00:03]} Be7 {[%emt 0:00:06]} 8. Nc3 {[%emt 0:00:05]} O-O {[%emt 0:00:04]} 9. Bf4 $146 {[%emt 0:00:02]} ({Predecessor:} 9. a4 Bd6 10. Re1 dxc4 11. Qxc4 e5 12. Be3 Qe7 13. dxe5 {½-½ Friberg,H (2208)-Soederberg,K (2262) Nordic Club-chT 2nd B1 email 2007}) 9... a4 {[%emt 0:00:05]} 10. Qc2 {[%emt 0:00:11]} dxc4 {[%emt 0:00:15]} 11. Nxa4 {[%emt 0:00:04]} Nd5 {[%emt 0:00:05]} 12. Bd2 {[%emt 0:00:07]} b5 {[%emt 0:00:04]} 13. Nc3 {[%emt 0:00:03]} Nxc3 {[%emt 0:00:05]} 14. bxc3 {[%emt 0:00:12]} Ra4 {[%emt 0:00:07]} 15. Bf4 {[%emt 0:00:09]} Bb7 {[%emt 0:00:05]} 16. e4 {[%emt 0:00:10]} (16. Rfb1 $15) 16... Qa5 $17 {[%emt 0:00:08]} 17. e5 {[%emt 0:00:47]} Ra8 {[%emt 0:00:11]} (17... c5 $142 {Threatens to win with ...Qa8.} 18. Rfb1 Rb8 19. dxc5 Nxc5) 18. Ng5 $17 {[%emt 0:00:11]} Bxg5 {[%emt 0:00:05]} ({Inferior is} 18... Rxa2 19. Qxh7+ Kf8 20. Qh8#) (18... g6 {with more complications.} 19. Ne4 Qa6 20. Qd2 c5) 19. Bxg5 {[%emt 0:00:02]} Rxa2 {[%emt 0:00:04]} 20. Rxa2 {[%emt 0:00:03]} Qxa2 {[%emt 0:00:03]} 21. Qe4 {[%emt 0:00:02]} Qb2 {[%emt 0:00:06]} 22. Qh4 $2 {[%emt 0:00:49]} (22. Qe3 $15) 22... Qxc3 $19 {[%emt 0:01:05]} 23. Be3 {[%emt 0:01:30]} Qa3 {[%emt 0:00:37]} 24. Be4 {[%emt 0:00:03]} Nf8 {[%emt 0:00:04]} 25. Qg4 {[%emt 0:00:03]} Nd7 $2 {[%emt 0:00:48]} ({Black should try} 25... b4 $19 {...b3 is the strong threat.} 26. h4 b3) 26. h4 $2 {[%emt 0:00:11][%mdl 8192]} (26. Qh4 $1 $11 {and White stays safe.} Nf8 27. h3) 26... Qe7 $19 {[%emt 0:00:23]} 27. Qf3 {[%emt 0:00:09]} Qe8 {[%emt 0:00:13]} 28. Bg5 {[%emt 0:00:17]} h6 {[%emt 0:00:09]} 29. Bf4 {[%emt 0:00:04]} f5 {[%emt 0:00:05]} 30. Bb1 {[%emt 0:00:19]} (30. exf6 $142 Nxf6 31. Rd1) 30... Rb8 {[%emt 0:00:05]} 31. g4 {[%emt 0:00:13]} Qg6 {[%emt 0:00:09]} 32. g5 {[%emt 0:00:21]} h5 {[%emt 0:00:16]} 33. Rd1 {[%emt 0:00:13]} Qe8 {[%emt 0:00:06]} ({Don't play} 33... c5 34. Qa3 $19) 34. Qa3 {[%emt 0:00:17]} Qf8 {[%emt 0:00:18]} 35. Qa7 {[%emt 0:00:15]} Qc8 {[%emt 0:00:04]} (35... g6 $142 36. Kf1 Qc8) 36. Qa5 $2 {[%emt 0:00:09]} (36. Bxf5 exf5 37. e6) 36... Ra8 $19 {[%emt 0:00:04]} 37. Qd2 {[%emt 0:00:03]} g6 {[%emt 0:00:04]} 38. Bc2 {[%emt 0:00:05]} Nb6 {[%emt 0:00:05]} 39. Rb1 {[%emt 0:00:09]} Nd5 {[%emt 0:00:03]} 40. Bd1 {[%emt 0:00:08]} Qc7 {[%emt 0:00:06]} 41. Qc1 {[%emt 0:00:08]} Qa5 {[%emt 0:00:06]} 42. Bd2 {[%emt 0:00:03]} Qa3 {[%emt 0:00:03]} 43. Qc2 {[%emt 0:00:28]} Qh3 {[%emt 0:00:05]} 44. Be2 {[%emt 0:00:45]} c5 {[%emt 0:00:05]} 45. f4 {[%emt 0:00:06]} Ne3 {[%emt 0:00:06]} 46. Qe4 {[%emt 0:00:04]} Qg3+ {[%emt 0:00:09]} 0-1

[Event "CCT Julius Baer-D3 2024"]
[Site "Online"]
[Date "2024.09.28"]
[Round "52"]
[White "Martirosyan, Haik M."]
[Black "Kamsky, Gata"]
[Result "1/2-1/2"]
[ECO "D35"]
[WhiteElo "2667"]
[BlackElo "2609"]
[Annotator "TA"]
[PlyCount "75"]
[EventDate "2024.09.25"]
[EventType "swiss"]
[EventCountry "NET"]
[SourceTitle "playchess.com"]
[Source "ChessBase"]
[SourceQuality "1"]
[TimeControl "600+2"]

{[%evp 21,75,37,35,21,31,21,45,34,40,18,14,20,24,14,14,22,25,0,0,0,0,3,2,0,12,8,22,9,25,29,22,0,0,0,0,0,5,0,0,0,0,0,0,-4,0,0,0,0,0,-3,0,0,0,0,0,0]} 1. d4 {[%emt 0:00:03]} Nf6 {[%emt 0:00:11]} 2. c4 {[%emt 0:00:02]} e6 {[%emt 0:00:01]} 3. Nf3 {[%emt 0:00:02]} d5 {[%emt 0:00:02]} 4. Nc3 {[%emt 0:00:01]} c6 {[%emt 0:00:02]} 5. Bg5 {[%emt 0:00:02]} Nbd7 {[%emt 0:00:01]} 6. cxd5 {[%emt 0:00:02]} exd5 {[%emt 0:00:02]} 7. Qc2 {[%emt 0:00:02]} Be7 {[%emt 0:00:05]} 8. e3 {[%emt 0:00:02]} Nh5 {[%emt 0:00:09]} 9. Bxe7 {[%emt 0:00:04]} Qxe7 {[%emt 0:00:01]} 10. Bd3 {[%emt 0:00:04]} Nhf6 {[%emt 0:00:03]} 11. O-O {[%emt 0:00:07]} O-O {[%emt 0:00:03]} 12. Rae1 {[%emt 0:00:11]} g6 {[%emt 0:00:23]} 13. Nd2 {[%emt 0:00:08]} Qd6 {[%emt 0:01:02]} 14. a3 {[%emt 0:00:27] White is slightly better.} a5 {[%emt 0:00:21]} 15. f3 {[%emt 0:00:19]} b5 {[%emt 0:00:41]} 16. Nb3 {[%emt 0:00:10][%cal Bd2b3,Bb3c1,Bc1e2][%mdl 32]} a4 {[%emt 0:00:04]} 17. Nc1 {[%emt 0:00:11]} b4 {[%emt 0:00:08]} 18. axb4 {[%emt 0:00:19]} Qxb4 {[%emt 0:00:02]} 19. N1e2 {[%emt 0:00:10]} c5 {[%emt 0:00:09]} 20. Bb5 {[%emt 0:00:21][%cal Rb5a4]} Nb6 {[%emt 0:00:37]} 21. Ra1 {[%emt 0:00:07]} Bf5 {[%emt 0:00:14]} 22. Qd2 {[%emt 0:00:10]} Bd7 {[%emt 0:00:47]} 23. Bd3 {[%emt 0:00:13]} Rab8 {[%emt 0:00:19]} 24. Rfc1 {[%emt 0:00:15]} Rfe8 {[%emt 0:00:11]} 25. dxc5 {[%emt 0:00:34]} Qxc5 {[%emt 0:00:02]} 26. Nxa4 {[%emt 0:00:18] The position is equal.} Qxe3+ {[%emt 0:00:03]} 27. Qxe3 {[%emt 0:00:01]} Rxe3 {[%emt 0:00:01]} 28. Nc5 {[%emt 0:00:01]} Bf5 {[%emt 0:00:02]} 29. Nf4 {[%emt 0:00:16]} Bxd3 {[%emt 0:00:05]} 30. Nfxd3 {[%emt 0:00:05]} d4 {[%emt 0:00:27]} 31. Rd1 {[%emt 0:00:15]} Nfd5 {[%emt 0:00:16]} 32. Nf2 {[%emt 0:00:22]} Re2 {[%emt 0:00:15]} 33. Rxd4 {[%emt 0:00:56]} Rxb2 {[%emt 0:00:04]} 34. Re1 {[%emt 0:00:07]} Rc8 {[%emt 0:00:06]} 35. Ncd3 {[%emt 0:00:01]} Ra2 {[%emt 0:00:10]} 36. h4 {[%emt 0:00:10]} Rc4 {[%emt 0:00:07]} 37. Ree4 {[%emt 0:00:31] [#] Black must now prevent Rxd5.} Rxd4 {[%emt 0:00:02]} 38. Rxd4 {[%emt 0:00:02] Weighted Error Value: White=0.05 (flawless) /Black=0.04 (flawless) .  OK:         	White=10    	Black=7      Best:        	---       	Black=1} 1/2-1/2

[Event "CCT Julius Baer-D3 2024"]
[Site "Online"]
[Date "2024.09.28"]
[Round "52"]
[White "Gelfand, Boris"]
[Black "Amin, Bassem"]
[Result "1/2-1/2"]
[ECO "E94"]
[WhiteElo "2658"]
[BlackElo "2636"]
[Annotator "TA"]
[PlyCount "96"]
[EventDate "2024.09.25"]
[EventType "swiss"]
[EventCountry "NET"]
[SourceTitle "playchess.com"]
[Source "ChessBase"]
[SourceQuality "1"]
[TimeControl "600+2"]

{[%evp 17,96,40,34,36,27,19,45,46,31,39,39,53,56,54,37,36,42,46,43,47,39,39,40,36,35,43,37,0,0,-74,-72,-56,-78,-27,0,-12,22,12,12,14,8,4,27,16,31,31,32,31,45,43,64,49,64,64,64,64,64,64,64,64,64,57,78,60,60,60,75,75,75,75,75,57,57,8,8,8,8,8,8,8,8]} 1. d4 {[%emt 0:00:03]} Nf6 {[%emt 0:00:03]} 2. c4 {[%emt 0:00:01]} g6 {[%emt 0:00:01]} 3. Nc3 {[%emt 0:00:01]} Bg7 {[%emt 0:00:01]} 4. e4 {[%emt 0:00:01]} d6 {[%emt 0:00:00]} 5. Be2 {[%emt 0:00:01]} O-O {[%emt 0:00:03][%cal Bh8f8,Bf8e8,Be8e6][%mdl 32]} 6. Nf3 {[%emt 0:00:01]} e5 {[%emt 0:00:01]} 7. O-O {[%emt 0:00:01]} exd4 {[%emt 0:00:01]} 8. Nxd4 {[%emt 0:00:02]} Re8 {[%emt 0:00:00]} 9. f3 {[%emt 0:00:01]} c6 {[%emt 0:00:01]} 10. Bg5 {[%emt 0:00:02]} Qb6 {[%emt 0:00:03][%cal Of6e4]} 11. Kh1 {[%emt 0:00:05]} Nxe4 {[%emt 0:00:02]} 12. Nxe4 {[%emt 0:00:09] White is slightly better.} Qxd4 {[%emt 0:00:01]} 13. Nxd6 {[%emt 0:00:05]} Re6 {[%emt 0:00:02]} (13... Rxe2 $2 14. Qxe2 Qxd6 15. Rad1 $18) 14. Nxc8 {[%emt 0:00:22] [#] Hoping for f4.} h6 $1 {[%emt 0:00:03]} 15. Qxd4 {[%emt 0:00:55]} Bxd4 {[%emt 0:01:57]} 16. Rad1 {[%emt 0:00:04]} (16. Ne7+ Kg7 17. Bh4 Rxe2 $17) 16... c5 {[%emt 0:00:29]} 17. Bxh6 {[%emt 0:01:14]} ({Avoid the trap} 17. Rxd4 $2 cxd4 18. Ne7+ Kh7 $19) 17... Rxe2 {[%emt 0:00:14]} 18. Rfe1 {[%emt 0:00:39]} Rxe1+ {[%emt 0:00:01]} 19. Rxe1 {[%emt 0:00:01]} Bxb2 {[%emt 0:00:01]} 20. Nd6 {[%emt 0:00:35]} ({Don't play} 20. Re8+ $6 Kh7 $16) 20... Nc6 {[%emt 0:00:02]} 21. Nxb7 {[%emt 0:00:14]} Bc3 {[%emt 0:00:02]} 22. Rc1 {[%emt 0:00:19]} Bd4 {[%emt 0:00:35]} 23. Nd6 {[%emt 0:00:51] [#]} (23. Bf4 $11) 23... Nb4 $1 $17 {[%emt 0:00:26][%cal Ob4d3] White must now prevent ...Nd3!} 24. Nb5 {[%emt 0:01:03]} Nxa2 {[%emt 0:00:46]} 25. Re1 {[%emt 0:00:03]} (25. Rf1 $17) 25... Bf6 {[%emt 0:00:58]} 26. Be3 {[%emt 0:00:37]} Re8 {[%emt 0:02:14]} 27. Nc7 {[%emt 0:00:05]} (27. Nxa7 $2 {too greedy.} Bc3 28. Re2 Nb4 $19) 27... Re5 {[%emt 0:00:01]} 28. Nd5 {[%emt 0:00:17] Dodges Nb4} Bg7 {[%emt 0:00:02]} 29. Rf1 {[%emt 0:00:58]} Nb4 {[%emt 0:00:40]} 30. Bxc5 {[%emt 0:00:19]} Nxd5 {[%emt 0:00:03]} 31. cxd5 {[%emt 0:00:01]} Rxd5 {[%emt 0:00:31]} 32. Bxa7 $11 {[%emt 0:00:02][%mdl 4096] Endgame. KRB-KRB} Ra5 {[%emt 0:00:01]} 33. Be3 {[%emt 0:00:10]} Ra1 {[%emt 0:00:01]} 34. Kg1 {[%emt 0:00:06]} Rxf1+ {[%emt 0:00:03]} 35. Kxf1 $14 {[%emt 0:00:01] KB-KB} f5 {[%emt 0:00:01]} 36. Ke2 {[%emt 0:00:02]} Kf7 {[%emt 0:00:01]} 37. Kd3 {[%emt 0:00:01]} Be5 {[%emt 0:00:02]} 38. h3 {[%emt 0:00:03]} Ke6 {[%emt 0:00:04]} 39. g4 {[%emt 0:00:08]} fxg4 {[%emt 0:00:02]} 40. hxg4 {[%emt 0:00:01]} Kf7 {[%emt 0:00:06]} 41. Ke4 {[%emt 0:00:02]} Bb2 {[%emt 0:00:03]} 42. Bd4 {[%emt 0:00:02]} Bc1 {[%emt 0:00:01]} 43. Ke5 {[%emt 0:00:08]} Bd2 {[%emt 0:00:03]} 44. f4 {[%emt 0:00:06]} Bc1 {[%emt 0:00:01]} 45. f5 {[%emt 0:00:02]} (45. Ba1 $14) 45... gxf5 $11 {[%emt 0:00:02] The position is equal.} 46. Kxf5 {[%emt 0:00:01]} Bd2 {[%emt 0:00:01]} 47. Be5 {[%emt 0:00:04]} Bc1 {[%emt 0:00:02]} 48. g5 $1 {[%emt 0:00:02]} Bxg5 {[%emt 0:00:02] Weighted Error Value: White=0.08 (flawless) /Black=0.05 (flawless) .  Mistake:       	White=3     	---        Inaccurate:     	White=1     	Black=3      OK:         	White=16    	Black=20     Best:        	White=3     	Black=2      Strong:       	White=1     	Black=2} 1/2-1/2

[Event "CCT Julius Baer-D3 2024"]
[Site "Online"]
[Date "2024.09.28"]
[Round "52"]
[White "Svane, Frederik"]
[Black "Niemann, Hans Moke"]
[Result "1-0"]
[ECO "C54"]
[WhiteElo "2640"]
[BlackElo "2733"]
[Annotator "TA"]
[PlyCount "133"]
[EventDate "2024.09.25"]
[EventType "swiss"]
[EventCountry "NET"]
[SourceTitle "playchess.com"]
[Source "ChessBase"]
[SourceQuality "1"]
[TimeControl "600+2"]

{[%evp 47,133,46,40,50,52,37,56,40,56,29,56,27,31,43,62,62,62,55,50,0,62,61,105,15,27,34,27,21,37,33,33,33,55,55,70,55,70,70,70,57,70,64,70,58,70,70,146,139,146,146,146,119,128,127,126,118,123,125,137,137,137,137,137,100,137,130,129,122,148,127,171,176,396,378,331,353,331,289,315,327,356,166,29974,29975,6239,6279,2670,2322]} 1. e4 {[%emt 0:00:02]} e5 {[%emt 0:00:02]} 2. Nf3 {[%emt 0:00:01]} Nc6 {[%emt 0:00:01]} 3. Bc4 {[%emt 0:00:03]} Nf6 {[%emt 0:00:01]} 4. d3 {[%emt 0:00:02]} Bc5 {[%emt 0:00:02]} 5. c3 {[%emt 0:00:03]} O-O {[%emt 0:00:03]} 6. Bg5 {[%emt 0:00:05]} Be7 {[%emt 0:00:03] C54: Giuoco Piano: 4 c3 Nf6, main lines with 5 d4 and 5 d3.} 7. Nbd2 {[%emt 0:00:07]} d6 {[%emt 0:00:01]} 8. a4 {[%emt 0:00:03]} h6 {[%emt 0:00:10]} 9. Bh4 {[%emt 0:00:01]} a5 {[%emt 0:00:04]} 10. Bg3 {[%emt 0:00:22]} Re8 {[%emt 0:00:10]} 11. O-O {[%emt 0:00:28]} Bf8 $146 {[%emt 0:00:02]} ({Predecessor:} 11... Be6 12. Bxe6 fxe6 13. h3 Qd7 14. Nh2 Rf8 15. Ng4 Kh7 16. Nc4 Qe8 17. Nxf6+ Bxf6 {1-0 Lagunow,R (2438)-Reuker,J (2394) BL2-Nord 1920 2019 (2.2)}) 12. Re1 {[%emt 0:00:25]} Be6 {[%emt 0:00:03]} 13. Bb5 {[%emt 0:00:14]} Bd7 {[%emt 0:00:01]} 14. h3 {[%emt 0:00:10]} Ne7 {[%emt 0:00:37]} 15. d4 {[%emt 0:00:50]} Ng6 {[%emt 0:00:07]} 16. Qb3 {[%emt 0:00:35]} Bxb5 {[%emt 0:00:14]} 17. Qxb5 {[%emt 0:00:17]} Qd7 {[%emt 0:00:06]} 18. dxe5 {[%emt 0:00:10]} Nxe5 {[%emt 0:02:54]} 19. Nxe5 {[%emt 0:00:20]} dxe5 {[%emt 0:00:02]} 20. Nc4 {[%emt 0:00:00]} Bd6 {[%emt 0:00:06]} 21. Qxd7 {[%emt 0:02:03]} Nxd7 {[%emt 0:00:03]} 22. Red1 {[%emt 0:00:00]} Nc5 {[%emt 0:00:02]} 23. f3 {[%emt 0:00:01]} Red8 {[%emt 0:01:58]} 24. Rd5 {[%emt 0:00:47]} (24. Nxe5 $2 Nb3 (24... f6 25. Rxd6 Rxd6 26. Nc4 $17) 25. Rab1 $19) 24... f6 {[%emt 0:00:03]} 25. Nxd6 {[%emt 0:00:12]} cxd6 {[%emt 0:00:03]} 26. Bf2 {[%emt 0:00:01]} Rac8 {[%emt 0:00:01]} 27. Kf1 {[%emt 0:00:04]} Kf7 {[%emt 0:00:03]} 28. Ke2 {[%emt 0:00:02]} Ke6 {[%emt 0:00:02]} 29. g4 {[%emt 0:00:03]} Rc6 {[%emt 0:00:14]} 30. h4 {[%emt 0:00:38]} b6 {[%emt 0:00:17]} 31. h5 {[%emt 0:00:05]} Na6 {[%emt 0:00:10]} 32. Rd3 {[%emt 0:00:46]} Nc5 {[%emt 0:00:04]} 33. Rd5 {[%emt 0:00:02]} Na6 $1 {[%emt 0:00:01]} 34. Rad1 {[%emt 0:00:33]} Rb8 {[%emt 0:00:04]} 35. Be3 {[%emt 0:00:14]} (35. c4 $1 $16) 35... Nc5 {[%emt 0:00:03]} 36. Ra1 {[%emt 0:00:02]} Na6 {[%emt 0:00:06]} 37. Rd3 {[%emt 0:00:09]} Nc5 {[%emt 0:00:01]} 38. Rdd1 {[%emt 0:00:01]} Na6 {[%emt 0:00:02]} 39. Kd3 {[%emt 0:00:08]} Rbc8 {[%emt 0:00:09]} 40. Kc2 {[%emt 0:00:04]} Nc5 {[%emt 0:00:03]} 41. Rd5 {[%emt 0:00:03]} R8c7 {[%emt 0:00:02]} 42. Ra3 {[%emt 0:00:04]} Rc8 {[%emt 0:00:02]} 43. Kd1 {[%emt 0:00:06]} Ra8 {[%emt 0:00:27]} 44. Ke2 {[%emt 0:00:25]} Ra7 {[%emt 0:00:02]} 45. Rd1 {[%emt 0:00:25]} Rc8 {[%emt 0:00:08]} 46. Rd2 {[%emt 0:00:02]} Rca8 {[%emt 0:00:05]} (46... Ke7 $14) 47. Bxc5 $1 $16 {[%emt 0:00:05]} dxc5 {[%emt 0:00:13]} 48. Rb3 {[%emt 0:00:01]} Rb8 {[%emt 0:00:01]} 49. Rd5 {[%emt 0:00:01]} c4 {[%emt 0:00:02]} (49... Rd7 $2 50. Rxc5 bxc5 51. Rxb8 $18) 50. Rbb5 {[%emt 0:00:03]} Rc7 {[%emt 0:00:06]} 51. Ke3 {[%emt 0:00:03]} Rc6 {[%emt 0:00:21]} 52. f4 {[%emt 0:00:01]} exf4+ {[%emt 0:00:00]} 53. Kxf4 {[%emt 0:00:00]} Rf8 {[%emt 0:00:00]} 54. Ke3 {[%emt 0:00:02]} Re8 {[%emt 0:00:08]} 55. Kd4 {[%emt 0:00:02]} Rf8 {[%emt 0:00:04]} 56. Rf5 $1 {[%emt 0:00:04]} Rd8+ {[%emt 0:00:01] [#]} 57. Rbd5 $1 {[%emt 0:00:01]} Re8 {[%emt 0:00:21] [#]} 58. e5 $1 {[%emt 0:00:03]} Re7 {[%emt 0:00:04]} 59. Rd8 {[%emt 0:00:07]} Kf7 $2 {[%emt 0:00:11]} (59... Rd7+ 60. Rxd7 Kxd7) 60. Rd6 $18 {[%emt 0:00:06]} Rxd6+ {[%emt 0:00:10]} 61. exd6 {[%emt 0:00:00]} Re2 {[%emt 0:00:06]} 62. Kd5 {[%emt 0:00:01]} (62. Kxc4 Ke6 $16) 62... Rd2+ {[%emt 0:00:03]} 63. Kc6 {[%emt 0:00:00]} Ke6 {[%emt 0:00:01]} 64. Kxb6 {[%emt 0:00:03]} (64. Kc7 $142 Rxd6 65. Rf2 (65. Rb5 Ke7 $18)) 64... Rxb2+ $2 {[%emt 0:00:07]} (64... Kxd6 $18 65. Rb5 (65. Kxa5 Rxb2 66. Rf4 Kc5 $11) 65... Rg2 66. Kxa5 (66. Rxa5 Rxb2+ 67. Rb5 Rc2 $11) 66... Kc6) 65. Kc7 {[%emt 0:00:00]} ({Inferior is} 65. Kxa5 Kxd6 66. Rf4 (66. Rb5 Rb3 $11) 66... Kc5 $11) 65... Rd2 {[%emt 0:00:08]} 66. Rf1 {[%emt 0:00:01]} Ke5 {[%emt 0:00:11]} 67. d7 {[%emt 0:00:01]} 1-0

[Event "CCT Julius Baer-D3 2024"]
[Site "Online"]
[Date "2024.09.28"]
[Round "52"]
[White "Amin, Bassem"]
[Black "Gelfand, Boris"]
[Result "0-1"]
[ECO "B30"]
[WhiteElo "2636"]
[BlackElo "2658"]
[Annotator "TA"]
[PlyCount "64"]
[EventDate "2024.09.25"]
[EventType "swiss"]
[EventCountry "NET"]
[SourceTitle "playchess.com"]
[Source "ChessBase"]
[SourceQuality "1"]
[TimeControl "600+2"]

{[%evp 9,64,13,7,0,0,9,7,10,19,4,23,2,31,-20,-8,-26,-20,-36,-29,-34,-20,-33,0,-33,-33,-41,-57,-51,-36,-18,0,8,7,-168,-155,-160,-150,-155,-143,-150,-149,-146,-106,-94,-91,-141,-139,-209,-33,-302,-301,-819,-802,-2330,-2293,-5639,-2809]} 1. e4 {[%emt 0:00:05]} c5 {[%emt 0:00:04]} 2. Nf3 {[%emt 0:00:01]} Nc6 {[%emt 0:00:01]} 3. Bb5 {[%emt 0:00:01]} e6 {[%emt 0:00:01]} 4. Bxc6 {[%emt 0:00:01]} bxc6 {[%emt 0:00:01]} 5. d3 {[%emt 0:00:00]} Ne7 {[%emt 0:00:02]} 6. Nbd2 {[%emt 0:00:01]} Qc7 {[%emt 0:00:01]} 7. h4 {[%emt 0:00:40]} e5 {[%emt 0:00:02]} 8. h5 {[%emt 0:00:03][%cal Oh5h6] The position is equal.} d6 {[%emt 0:00:03]} 9. Nc4 {[%emt 0:00:15]} Ng8 {[%emt 0:00:03][%cal Be7g8,Bg8f6,Bf6e4][%mdl 32]} 10. Nh2 {[%emt 0:00:43]} Nf6 {[%emt 0:01:36]} 11. O-O {[%emt 0:00:12]} ({White should play} 11. Bg5 $14) 11... Be6 {[%emt 0:00:51][%cal Of6e4]} 12. b3 {[%emt 0:00:03]} d5 {[%emt 0:00:20]} 13. Ne3 {[%emt 0:00:26]} dxe4 {[%emt 0:00:21]} 14. dxe4 {[%emt 0:00:02]} Nxe4 {[%emt 0:00:01]} 15. Qf3 {[%emt 0:00:04]} Nf6 {[%emt 0:00:26]} 16. Bb2 {[%emt 0:00:13][%cal Ob2e5]} e4 {[%emt 0:00:41]} 17. Qe2 {[%emt 0:00:05]} Bd6 $36 {[%emt 0:00:01][%mdl 2048] Black has some pressure.} 18. Nhg4 {[%emt 0:00:04]} Nxh5 {[%emt 0:00:41]} (18... Nxg4 $5 19. Nxg4 f5 $11) 19. Nc4 {[%emt 0:00:25]} f5 {[%emt 0:01:03]} 20. Nxd6+ {[%emt 0:00:12]} Qxd6 {[%emt 0:00:01]} 21. Be5 $2 {[%emt 0:00:02] [#]} (21. Ne5 $11 Nf4 22. Qe3) 21... Qe7 $1 $19 {[%emt 0:00:15]} 22. Ne3 {[%emt 0:00:04]} Qg5 {[%emt 0:00:19] Strongly threatening ...f4.} 23. f4 {[%emt 0:01:22]} exf3 {[%emt 0:00:10]} 24. Qxf3 {[%emt 0:00:07]} O-O {[%emt 0:00:03] aiming for ...f4.} 25. Bd6 {[%emt 0:00:25][%cal Oa1d1]} Rf7 {[%emt 0:00:24] ...f4 would now be deadly.} 26. Rae1 {[%emt 0:00:25]} Rc8 {[%emt 0:00:10]} 27. Nc4 {[%emt 0:00:23]} (27. Bf4 $142 Nxf4 28. Qxf4 Qxf4 29. Rxf4) 27... Bd5 $17 {[%emt 0:00:45]} 28. Qf2 {[%emt 0:00:19]} (28. Qh3 $17 {was necessary.}) 28... f4 $2 {[%emt 0:00:27]} (28... Rd8 $19 {...Bxc4 is the strong threat.} 29. Bh2 f4) 29. Re5 $2 {[%emt 0:00:19][%mdl 8192]} (29. Ne5 $15 Rf6 30. Be7) 29... Qg6 $19 {[%emt 0:00:26] And now ...Ng3 would win.} 30. Bxc5 $2 {[%emt 0:01:05]} (30. Rfe1 h6 31. Bxc5 Bxc4 32. bxc4) 30... Ng3 {[%emt 0:00:04] White must now prevent ...Qh6. Black is clearly winning.} (30... f3 31. Rxd5 cxd5 32. Ne5 $17) 31. Rfe1 {[%emt 0:00:06]} Qh6 {[%emt 0:00:26][%csl Gg3][%cal Rh6h1]} ({Worse is} 31... Ne4 32. R5xe4 Bxe4 33. Nd6 $16 (33. Bxa7 Rxa7 34. Ne5 Qxg2+ 35. Qxg2 Bxg2 $19)) 32. Re8+ {[%emt 0:00:39] [#]} Rf8 $3 {[%emt 0:00:03][%mdl 512] Weighted Error Value: White=1.02/Black=0.17 (very precise) .  Loses game:     	White=2     	---        Missed win:     	---       	Black=1      Mistake:       	White=4     	---        Inaccurate:     	White=2     	Black=3      OK:         	White=9     	Black=6      Best:        	White=2     	Black=4      Strong:       	---       	Black=1} 0-1